bitfinex-derivatives/quotes_SOLF0:USTF0_20251125
["timestamp","ask_amount","ask_price","bid_price","bid_amount"]
[1764092538322,3.14,137.8,137.71,3.16]
[1764092538525,0.04644285,137.77,137.74,3.21082581]
[1764092540232,3.00644285,137.77,137.74,3.21082581]
[1764092541128,0.04644285,137.77,137.74,3.21082581]
[1764092541633,3.00644285,137.77,137.74,0.05082581]
[1764092542527,2.96,137.75,137.74,0.05082581]
[1764092543542,2.96,137.75,137.67,3.1]
[1764092544831,0.05335489,137.72,137.7,0.04687579]
[1764092545032,2.96,137.78,137.7,3.14687579]
[1764092545231,2.96,137.78,137.7,3.1]
[1764092546130,0.05012138,137.75,137.73,0.04978031]
[1764092546326,0.05012138,137.75,137.73,3.14978031]
[1764092547138,3.01012138,137.75,137.73,0.04978031]
[1764092548742,0.05012138,137.75,137.73,3.14978031]
[1764092549935,2.96,137.81,137.73,3.14978031]
[1764092550136,2.96,137.79,137.73,3.14978031]
[1764092550442,2.96,137.79,137.73,3.1]
[1764092550740,0.05107235,137.77,137.75,0.04809471]
[1764092551740,3.01107235,137.77,137.75,0.04809471]
[1764092553337,2.96,137.76,137.75,0.04809471]
[1764092556247,8.47495378,137.76,137.75,0.04809471]
[1764092556843,8.47486155,137.76,137.75,0.04809471]
[1764092559843,6.5389,137.72,137.67,3.1]
[1764092560645,104.6514,137.75,137.67,3.1]
[1764092560646,9.4992,137.71,137.67,3.1]
[1764092560951,0.04655968,137.7,137.68,3.14604934]
[1764092563857,6.58625968,137.7,137.68,3.14604934]
[1764092564050,0.04655968,137.7,137.68,3.14604934]
[1764092565348,0.04655968,137.7,137.68,0.04604934]
[1764092565652,0.04655968,137.7,137.68,3.14604934]
[1764092565848,2.96,137.76,137.68,3.14604934]
[1764092566243,2.96,137.72,137.68,3.14604934]
[1764092566849,0.04725412,137.71,137.68,3.14604934]
[1764092567049,2.96,137.7,137.68,0.04604934]
[1764092569056,9.5501,137.69,137.68,0.04604934]
[1764092569560,6.58675412,137.71,137.68,3.04604934]
[1764092569752,0.04725412,137.71,137.68,3.04604934]
[1764092569951,3.05725412,137.71,137.68,3.04604934]
[1764092570253,9.59645412,137.71,137.68,3.04604934]
[1764092570950,6.58645412,137.71,137.68,3.04604934]
[1764092571955,0.04725412,137.71,137.68,3.04604934]
[1764092573263,28.09,137.77,137.68,3.04604934]
[1764092573460,28.09,137.77,137.76,8.168e-05]
[1764092574258,40.00081027,137.77,137.76,8.168e-05]
[1764092574860,40.00023647,137.77,137.76,8.168e-05]
[1764092575062,40.00023647,137.77,137.75,0.05538042]
[1764092575063,3.01,137.76,137.75,0.05538042]
[1764092575255,8.38436486,137.76,137.75,0.05538042]
[1764092575458,3.01,137.76,137.75,0.05538042]
[1764092576462,8.38462986,137.76,137.75,0.05538042]
[1764092577666,3.01,137.74,137.68,3.0]
[1764092578264,9.5478,137.74,137.68,3.0]
[1764092578669,0.04741116,137.72,137.7,3.051403]
[1764092579677,3.03741116,137.72,137.7,0.051403]
[1764092579878,0.04741116,137.72,137.7,0.051403]
[1764092580074,0.04741116,137.72,137.7,3.211403]
[1764092581278,0.04741116,137.72,137.7,0.051403]
[1764092582178,2.99,137.71,137.7,0.051403]
[1764092582876,9.57621116,137.72,137.7,0.051403]
[1764092584388,6.58621116,137.72,137.7,3.211403]
[1764092585277,0.04741116,137.72,137.7,3.211403]
[1764092600593,3.18741116,137.72,137.7,0.051403]
[1764092600988,8.52307713,137.71,137.7,0.051403]
[1764092601592,3.18741116,137.72,137.7,0.051403]
[1764092603488,3.5673395,137.8,137.74,2.92]
[1764092603695,3.14,137.9,137.8,0.63]
[1764092603886,3.14,137.9,137.79,6.32560964]
[1764092603887,3.14,137.88,137.86,1.76252724]
[1764092604189,3.14,137.86,137.75,0.63]
[1764092604496,3.14,137.84,137.79,0.04913951]
[1764092604790,3.14,137.82,137.68,0.63]
[1764092604984,3.14,137.82,137.71,0.63]
[1764092605392,3.14,137.8,137.71,0.63]
[1764092605892,0.05068086,137.77,137.74,0.67724411]
[1764092608285,3.19068086,137.77,137.74,0.67724411]
[1764092608489,3.19068086,137.77,137.74,0.04724411]
[1764092612495,5.84759346,137.77,137.74,0.04724411]
[1764092612800,3.14,137.76,137.74,0.04724411]
[1764092615693,3.14,137.74,137.68,0.63]
[1764092615886,3.14,137.72,137.65,2.6569126]
[1764092616093,3.14,137.72,137.66,7.1713]
[1764092616801,0.05294904,137.7,137.68,0.048708]
[1764092617300,3.19294904,137.7,137.68,0.048708]
[1764092618698,3.14,137.68,137.61,13.21584436]
[1764092619002,3.14,137.66,137.6,0.63]
[1764092619208,3.14,137.64,137.6,0.63]
[1764092619596,5.7969126,137.67,137.6,0.63]
[1764092619795,0.05278512,137.65,137.62,0.04965143]
[1764092620007,3.19278512,137.65,137.62,0.04965143]
[1764092620904,3.14,137.78,137.67,0.58]
[1764092621103,5.7969126,137.77,137.7,2.6569126]
[1764092621293,3.14,137.77,137.7,2.6569126]
[1764092621605,5.7969126,137.77,137.7,4.9969126]
[1764092621805,0.05465182,137.75,137.72,0.05121911]
[1764092622709,3.19465182,137.75,137.72,0.05121911]
[1764092626009,3.14,137.74,137.63,15.55584436]
[1764092626214,3.14,137.74,137.64,2.34]
[1764092626508,3.14,137.73,137.65,8.8819]
[1764092626710,3.14,137.73,137.66,2.34]
[1764092627204,0.05426694,137.71,137.68,0.04711813]
[1764092627409,2.95426694,137.71,137.68,0.04711813]
[1764092629806,0.05426694,137.71,137.68,2.37711813]
[1764092630512,0.05426694,137.71,137.68,8.91751813]
[1764092630713,0.05426694,137.71,137.69,2.33]
[1764092631304,0.05426694,137.71,137.69,8.87]
[1764092631510,2.9,137.79,137.7,2.33]
[1764092631810,2.9,137.79,137.78,1.76297145]
[1764092632012,2.9,137.79,137.7,2.33]
[1764092632714,2.95033445,137.76,137.73,0.05582046]
[1764092633307,0.05033445,137.76,137.73,2.38582046]
[1764092633901,0.05033445,137.76,137.74,2.33]
[1764092636114,2.9,137.82,137.74,2.33]
[1764092636515,2.9,137.82,137.72,6.32389527]
[1764092636816,2.9,137.77,137.76,1.76272061]
[1764092637114,2.9,137.76,137.75,0.05266156]
[1764092637318,2.9,137.76,137.74,0.05301319]
[1764092637511,2.94852979,137.76,137.74,0.05214362]
[1764092639817,9.48532979,137.76,137.74,0.05214362]
[1764092640024,2.98,137.75,137.74,0.05214362]
[1764092642419,25.12,137.79,137.74,0.05214362]
[1764092642420,2.98,137.8,137.74,2.38214362]
[1764092642624,2.98,137.78,137.74,0.05214362]
[1764092642820,110.6229633,137.87,137.71,2.33]
[1764092642821,2.98,137.81,137.71,2.33]
[1764092643021,9.5127,137.85,137.74,2.33]
[1764092643221,2.98,137.83,137.82,1.7599432]
[1764092643425,2.98,137.83,137.81,0.05219377]
[1764092643619,2.98,137.83,137.81,0.04755131]
[1764092643620,3.03228373,137.83,137.81,0.04755131]
[1764092644124,3.03228373,137.83,137.82,1.75975283]
[1764092644425,2.98,137.82,137.81,0.04755131]
[1764092644723,2.98,137.82,137.73,2.33]
[1764092645123,9.5145,137.81,137.73,2.33]
[1764092645626,0.05415129,137.78,137.76,0.05030031]
[1764092646024,2.98,137.77,137.68,2.95]
[1764092646227,2.98,137.76,137.68,2.95]
[1764092646421,2.98,137.76,137.75,1.76237847]
[1764092646622,2.98,137.76,137.68,2.95]
[1764092646822,6.5374,137.75,137.68,2.95]
[1764092647028,3.03010365,137.73,137.7,0.05044959]
[1764092647230,9.56840365,137.73,137.7,0.05044959]
[1764092647528,2.98,137.72,137.7,0.05044959]
[1764092648929,2.98,137.71,137.7,0.05044959]
[1764092651336,0.05010365,137.73,137.7,3.00044959]
[1764092651536,8.41423225,137.78,137.71,2.95]
[1764092651838,5.43423225,137.77,137.71,2.95]
[1764092652040,2.98,137.75,137.67,2.95]
[1764092652234,5.43628873,137.74,137.67,2.95]
[1764092652438,3.02848432,137.72,137.69,0.05328408]
[1764092652742,9.5197,137.7,137.69,0.05328408]
[1764092653438,6.5397,137.7,137.69,0.05328408]
[1764092656135,6.58758432,137.72,137.69,3.00328408]
[1764092656538,0.04848432,137.72,137.69,3.00328408]
[1764092656937,0.04848432,137.72,137.69,0.05328408]
[1764092656938,6.5392,137.71,137.69,0.05328408]
[1764092657343,0.04848432,137.72,137.69,0.05328408]
[1764092659346,3.01848432,137.72,137.69,0.05328408]
[1764092661045,0.04848432,137.72,137.7,2.96]
[1764092663948,0.04848432,137.72,137.69,0.05328408]
[1764092663949,3.01848432,137.72,137.69,0.05328408]
[1764092664457,3.01848432,137.72,137.63,2.96]
[1764092664458,2.97,137.71,137.63,2.96]
[1764092665050,8.44693939,137.7,137.63,2.96]
[1764092665348,0.05501925,137.68,137.65,3.00755401]
[1764092666356,0.05501925,137.68,137.66,9.5014]
[1764092668355,0.05501925,137.68,137.66,2.96]
[1764092672255,2.97,137.73,137.67,9.5008]
[1764092673256,0.05064805,137.71,137.69,0.05182916]
[1764092676657,3.02064805,137.71,137.69,0.05182916]
[1764092679162,2.97,137.69,137.62,104.7441]
[1764092679366,2.97,137.69,137.63,2.96]
[1764092680072,0.05492525,137.67,137.65,9.55390554]
[1764092680369,2.97,137.72,137.65,0.05200554]
[1764092680665,2.97,137.7,137.63,2.96]
[1764092680869,8.4452109,137.69,137.63,2.96]
[1764092681064,2.97,137.69,137.63,2.96]
[1764092681463,0.04720335,137.67,137.65,0.05200662]
[1764092682663,0.04720335,137.67,137.65,3.01200662]
[1764092684471,0.04720335,137.67,137.65,9.55390662]
[1764092684668,0.04720335,137.67,137.66,2.96]
[1764092687372,0.04720335,137.67,137.65,0.05200662]
[1764092687575,0.04720335,137.67,137.65,3.10200662]
[1764092688664,2.97720335,137.67,137.65,0.05200662]
[1764092690271,0.04720335,137.67,137.65,0.05200662]
[1764092691676,0.04720335,137.67,137.65,3.10200662]
[1764092692870,0.04720335,137.67,137.66,3.05]
[1764092693371,0.04720335,137.67,137.65,3.10200662]
[1764092693963,0.04720335,137.67,137.66,3.05]
[1764092700680,0.04720335,137.67,137.65,6.59390662]
[1764092701280,0.04720335,137.67,137.66,2.88]
[1764092702185,2.89,137.72,137.66,2.88]
[1764092702383,2.89,137.71,137.66,2.88]
[1764092702980,0.05395729,137.7,137.67,2.93182474]
[1764092703178,2.94395729,137.7,137.67,2.93182474]
[1764092703384,2.94395729,137.7,137.67,0.05182474]
[1764092703888,0.05395729,137.7,137.68,9.4205]
[1764092704077,0.05395729,137.7,137.69,2.88]
[1764092704383,36.05705998,137.77,137.7,2.88]
[1764092704384,2.89,137.76,137.7,2.88]
[1764092704582,13.51812727,137.75,137.74,1.76591378]
[1764092704993,2.89,137.74,137.71,6.5388]
[1764092705186,2.89,137.75,137.68,2.88]
[1764092705382,2.93764377,137.73,137.7,0.04748645]
[1764092705896,2.89,137.71,137.7,0.04748645]
[1764092707188,8.1085866,137.71,137.7,0.04748645]
[1764092707382,8.1085866,137.71,137.62,17.39903464]
[1764092707383,5.2185866,137.71,137.62,17.39903464]
[1764092707584,2.89,137.69,137.63,2.88]
[1764092708488,0.04683436,137.67,137.65,0.053131]
[1764092708787,0.04683436,137.67,137.65,2.933131]
[1764092710791,2.93683436,137.67,137.65,0.053131]
[1764092713093,8.11377627,137.66,137.65,0.053131]
[1764092714888,2.89,137.66,137.65,0.053131]
[1764092715099,2.89,137.65,137.59,2.88]
[1764092715998,2.89,137.62,137.61,0.05231063]
[1764092716200,2.89,137.62,137.6,0.04677241]
[1764092717503,0.04784556,137.63,137.6,3.07677241]
[1764092718393,0.04784556,137.63,137.6,9.62107241]
[1764092718801,0.04784556,137.63,137.61,5.69149982]
[1764092719103,0.04784556,137.63,137.62,3.03]
[1764092720001,3.05,137.68,137.62,3.03]
[1764092720204,3.05,137.68,137.64,3.03]
[1764092721008,3.10452792,137.67,137.65,0.04950495]
[1764092721204,3.09719638,137.67,137.65,0.04950495]
[1764092722908,0.04719638,137.67,137.59,3.03]
[1764092723099,3.05,137.66,137.59,3.03]
[1764092723314,3.05,137.64,137.56,3.03]
[1764092723504,3.05,137.64,137.57,3.03]
[1764092724003,0.05372309,137.62,137.59,0.04647762]
[1764092724306,3.10372309,137.62,137.59,0.04647762]
[1764092727509,3.05,137.61,137.52,2.66149982]
[1764092727807,3.05,137.61,137.5,13.24377321]
[1764092727808,3.05,137.6,137.54,5.69149982]
[1764092728211,3.05,137.6,137.54,3.03]
[1764092728704,3.10272048,137.58,137.56,0.05517919]
[1764092729100,9.64822048,137.58,137.56,0.05517919]
[1764092729305,3.05,137.57,137.56,0.05517919]
[1764092729503,3.05,137.57,137.49,2.66149982]
[1764092729896,3.05,137.55,137.49,2.66149982]
[1764092730300,3.05,137.55,137.48,5.69149982]
[1764092730608,0.04995759,137.53,137.51,3.03]
[1764092730905,0.04639334,137.53,137.51,3.07851211]
[1764092732905,0.04639334,137.53,137.51,0.04851211]
[1764092733102,0.04639334,137.53,137.51,3.07851211]
[1764092736408,3.09639334,137.53,137.51,0.04851211]
[1764092738904,0.04639334,137.53,137.51,3.07851211]
[1764092740118,3.09639334,137.53,137.51,0.04851211]
[1764092749114,0.04639334,137.53,137.51,3.05851211]
[1764092749311,0.04639334,137.53,137.51,9.60711211]
[1764092749713,3.21639334,137.53,137.46,3.01]
[1764092750518,3.21639334,137.53,137.49,3.01]
[1764092750708,0.05466052,137.52,137.5,0.04797698]
[1764092750911,3.22466052,137.52,137.5,0.04797698]
[1764092762824,9.77296052,137.52,137.5,0.04797698]
[1764092763030,3.07,137.51,137.5,0.04797698]
[1764092763623,3.07,137.49,137.45,5.68561507]
[1764092764222,3.07,137.49,137.45,3.02]
[1764092764633,0.05427396,137.48,137.46,0.05178522]
[1764092765434,3.12427396,137.48,137.46,0.05178522]
[1764092766522,3.07,137.47,137.46,0.05178522]
[1764092766726,3.07,137.47,137.39,3.02]
[1764092767031,9.6211,137.46,137.39,5.68561507]
[1764092767232,3.07,137.46,137.39,5.68561507]
[1764092767632,6.5516,137.45,137.39,5.68561507]
[1764092767834,0.05340438,137.43,137.41,3.06642546]
[1764092769845,0.05340438,137.43,137.41,5.73204053]
[1764092770143,0.05340438,137.43,137.42,3.02]
[1764092770344,0.05340438,137.43,137.41,0.04642546]
[1764092770643,0.05340438,137.43,137.41,3.06642546]
[1764092772339,3.12340438,137.43,137.41,0.04642546]
[1764092774447,3.07,137.42,137.41,0.04642546]
[1764092774842,3.07,137.42,137.3,38.2372]
[1764092774843,3.07,137.42,137.35,5.68561507]
[1764092775250,9.6236,137.41,137.35,3.02]
[1764092775643,3.07,137.4,137.35,3.02]
[1764092775838,3.12299381,137.39,137.36,3.07382576]
[1764092776044,0.05299381,137.39,137.36,3.07382576]
[1764092776256,0.05299381,137.39,137.37,3.02]
[1764092776748,0.05299381,137.39,137.38,5.68561507]
[1764092778149,0.05299381,137.39,137.37,5.65561507]
[1764092778554,0.05299381,137.39,137.37,2.99]
[1764092780444,0.05299381,137.39,137.38,2.99]
[1764092788456,0.05299381,137.39,137.37,6.5552]
[1764092788856,0.05299381,137.39,137.37,9.5452]
[1764092789157,0.05299381,137.39,137.38,2.99]
[1764092790250,0.05299381,137.39,137.36,3.04382576]
[1764092791361,0.05299381,137.39,137.38,2.99]
[1764092792059,0.05299381,137.39,137.38,9.5449]
[1764092792254,0.05299381,137.39,137.38,2.99]
[1764092792554,0.05299381,137.39,137.37,2.99]
[1764092793253,0.05299381,137.39,137.37,9.5453]
[1764092793455,0.05299381,137.39,137.38,2.99]
[1764092794358,0.05299381,137.39,137.38,9.5449]
[1764092796361,3.18,137.45,137.39,2.99]
[1764092796557,22.26934496,137.49,137.44,2.99]
[1764092796762,4.17151685,137.53,137.44,2.99]
[1764092796763,3.18,137.52,137.44,2.99]
[1764092797060,3.18,137.52,137.5,1.76770793]
[1764092797466,3.22662681,137.52,137.5,1.81894399]
[1764092797952,3.22662681,137.52,137.5,0.05123606]
[1764092798152,3.22662681,137.52,137.5,1.81933852]
[1764092798364,3.22662681,137.52,137.5,0.05123606]
[1764092798559,3.22662681,137.52,137.49,1.76875098]
[1764092798762,3.18,137.51,137.49,0.34204796]
[1764092798966,7.35151685,137.5,137.49,0.00204796]
[1764092799263,8.81151685,137.5,137.49,0.00204796]
[1764092799558,8.81151685,137.5,137.41,9.543]
[1764092799559,3.18,137.49,137.41,9.543]
[1764092800262,3.18,137.48,137.41,9.543]
[1764092800458,4.17151685,137.46,137.38,2.99]
[1764092800659,3.18,137.45,137.38,2.99]
[1764092800864,3.18,137.45,137.41,3.04430373]
[1764092800865,0.05245789,137.43,137.41,3.04430373]
[1764092801056,0.05245789,137.43,137.41,9.59770373]
[1764092801256,0.05245789,137.43,137.42,2.99]
[1764092802460,0.05245789,137.43,137.41,6.60770373]
[1764092802461,0.05245789,137.43,137.41,3.04430373]
[1764092802964,3.23245789,137.43,137.41,0.05430373]
[1764092803661,0.05245789,137.43,137.41,3.04430373]
[1764092805264,0.05245789,137.43,137.41,0.05430373]
[1764092805663,0.05245789,137.43,137.41,3.04430373]
[1764092807971,2.96245789,137.43,137.41,0.05430373]
[1764092809266,0.05245789,137.43,137.41,3.07430373]
[1764092810074,2.96245789,137.43,137.41,0.05430373]
[1764092810271,0.05245789,137.43,137.41,0.05430373]
[1764092810474,0.05245789,137.43,137.41,3.07430373]
[1764092810675,2.96245789,137.43,137.41,0.05430373]
[1764092813379,0.05245789,137.43,137.41,3.07430373]
[1764092817171,5.24472357,137.48,137.42,3.02]
[1764092817367,2.91,137.49,137.42,3.02]
[1764092817678,2.91,137.52,137.42,3.02]
[1764092817879,13.44844801,137.51,137.5,1.77616729]
[1764092818476,2.91,137.5,137.49,0.05323578]
[1764092818681,14.70226928,137.5,137.49,0.05323578]
[1764092819282,8.15316928,137.5,137.49,0.05323578]
[1764092820285,5.24316928,137.5,137.49,3.07323578]
[1764092820578,5.24316928,137.5,137.49,0.05323578]
[1764092820579,8.12011718,137.5,137.49,0.05323578]
[1764092821080,2.88,137.49,137.4,3.02]
[1764092821285,2.88,137.49,137.48,0.00266471]
[1764092821477,38.54398187,137.49,137.48,0.00266471]
[1764092822382,38.54398187,137.49,137.4,3.02]
[1764092822383,2.73,137.47,137.4,3.02]
[1764092823287,2.78366473,137.45,137.42,0.04860961]
[1764092823677,2.78366473,137.45,137.42,3.06860961]
[1764092823984,0.05366473,137.45,137.42,3.06860961]
[1764092824186,2.78366473,137.45,137.42,3.06860961]
[1764092824974,0.05366473,137.45,137.42,3.06860961]
[1764092825685,2.78366473,137.45,137.42,0.04860961]
[1764092827583,2.78366473,137.45,137.42,3.06860961]
[1764092828176,0.05366473,137.45,137.42,3.06860961]
[1764092828778,2.78366473,137.45,137.42,3.06860961]
[1764092830695,2.78366473,137.45,137.42,0.04860961]
[1764092831085,2.73,137.43,137.42,0.04860961]
[1764092832395,6.5532,137.42,137.36,3.02]
[1764092832598,7.97531458,137.43,137.36,3.02]
[1764092832599,2.73,137.43,137.36,3.02]
[1764092832889,6.552,137.45,137.36,3.02]
[1764092833093,2.73,137.46,137.44,1.77363183]
[1764092833292,5.24496725,137.45,137.44,1.77363183]
[1764092833479,25.12,137.47,137.41,3.02]
[1764092833480,0.05006452,137.46,137.41,3.02]
[1764092833792,0.05006452,137.46,137.42,6.5529]
[1764092833989,0.05006452,137.46,137.43,3.02]
[1764092834294,5.24234937,137.51,137.45,3.02]
[1764092834590,2.73,137.52,137.45,3.02]
[1764092834792,2.78,137.5,137.45,3.02]
[1764092834991,2.78,137.5,137.49,1.77076072]
[1764092835190,2.78,137.49,137.48,0.0482555]
[1764092835390,2.78,137.48,137.47,0.05447209]
[1764092835591,2.78,137.48,137.46,0.04990649]
[1764092835992,8.05887688,137.47,137.46,0.04990649]
[1764092836788,8.05887688,137.47,137.39,9.5743]
[1764092836789,9.3314,137.46,137.39,3.02]
[1764092836996,5.27887688,137.45,137.39,3.02]
[1764092837184,2.78,137.46,137.39,3.02]
[1764092837496,8.07083979,137.45,137.39,3.02]
[1764092837696,2.79,137.45,137.39,3.02]
[1764092837991,0.05581432,137.43,137.39,3.02]
[1764092838794,2.79,137.42,137.36,3.19]
[1764092839694,9.3431,137.42,137.36,3.19]
[1764092839999,2.79,137.42,137.36,3.19]
[1764092840496,9.343,137.42,137.36,3.19]
[1764092841792,2.79,137.41,137.36,3.19]
[1764092842093,8.12291794,137.4,137.36,3.19]
[1764092842292,2.83798397,137.4,137.36,3.19]
[1764092842495,2.83798397,137.4,137.33,12.41624201]
[1764092842990,2.83798397,137.4,137.34,9.7467]
[1764092844298,2.83798397,137.4,137.34,3.19]
[1764092844898,9.39198397,137.4,137.34,3.19]
[1764092845102,2.79,137.39,137.34,3.19]
[1764092846996,2.79,137.38,137.34,3.19]
[1764092847795,0.04798397,137.4,137.34,3.19]
[1764092847989,0.04798397,137.4,137.37,3.19]
[1764092848294,0.05332354,137.4,137.37,3.19]
[1764092857216,2.84332354,137.4,137.37,3.19]
[1764092857614,0.05332354,137.4,137.37,3.19]
[1764092857814,0.05332354,137.4,137.35,3.19]
[1764092857815,2.79,137.39,137.35,3.19]
[1764092858018,0.05103018,137.38,137.35,3.19]
[1764092858219,2.84103018,137.38,137.35,3.19]
[1764092858410,9.39603018,137.38,137.35,3.19]
[1764092859113,0.05103018,137.38,137.32,3.19]
[1764092860215,0.05103018,137.38,137.34,3.19]
[1764092861011,0.05103018,137.38,137.34,9.7467]
[1764092861220,0.05103018,137.38,137.35,3.19]
[1764092864524,2.79,137.44,137.36,3.19]
[1764092865521,0.04767479,137.41,137.39,0.05594745]
[1764092865922,0.04767479,137.41,137.39,3.24594745]
[1764092866824,2.84,137.47,137.39,3.24594745]
[1764092867024,2.84,137.47,137.46,1.77696747]
[1764092867224,2.84,137.47,137.42,3.19]
[1764092867922,2.89389657,137.46,137.43,0.05306284]
[1764092870619,2.84,137.44,137.43,0.05306284]
[1764092871422,2.89389657,137.46,137.43,0.05306284]
[1764092877425,5.27839603,137.45,137.43,0.05306284]
[1764092877624,2.84,137.44,137.43,0.05306284]
[1764092881024,2.84,137.44,137.36,2.66912863]
[1764092881221,2.79,137.42,137.35,5.65912863]
[1764092881426,2.79,137.42,137.36,2.99]
[1764092882238,2.83815214,137.4,137.38,0.0521895]
[1764092882732,5.50728077,137.4,137.38,0.0521895]
[1764092882938,2.79,137.39,137.38,0.0521895]
[1764092883327,2.79,137.39,137.3,2.99]
[1764092883628,2.74,137.36,137.3,2.99]
[1764092883829,2.74,137.35,137.3,2.99]
[1764092884331,0.05562235,137.34,137.3,2.99]
[1764092884927,0.05562235,137.34,137.31,2.99]
[1764092887329,2.79562235,137.34,137.29,13.24377321]
[1764092887535,2.79562235,137.34,137.3,2.99]
[1764092888231,0.05562235,137.34,137.3,5.65912863]
[1764092888432,0.05562235,137.34,137.31,2.99]
[1764092889642,2.79562235,137.34,137.31,2.99]
[1764092889835,2.79562235,137.34,137.28,5.65912863]
[1764092890031,2.79562235,137.34,137.29,2.99]
[1764092891241,2.74,137.33,137.29,2.99]
[1764092892045,2.74,137.33,137.27,5.65912863]
[1764092892235,2.66912863,137.3,137.23,16.23377321]
[1764092892544,2.74,137.29,137.24,2.99]
[1764092892735,2.74,137.27,137.21,16.23377321]
[1764092892931,2.74,137.27,137.21,2.99]
[1764092893133,2.71829368,137.28,137.22,2.99]
[1764092893341,0.04916505,137.28,137.24,2.99]
[1764092893645,0.0475026,137.27,137.24,2.99]
[1764092894234,0.0475026,137.27,137.25,2.66912863]
[1764092894437,2.74,137.33,137.26,2.99]
[1764092894641,2.74,137.33,137.25,2.66912863]
[1764092894642,9.2974,137.33,137.27,2.99]
[1764092895429,0.04925685,137.31,137.29,0.0464568]
[1764092895630,2.82925685,137.31,137.29,0.0464568]
[1764092896734,0.04925685,137.31,137.29,3.0364568]
[1764092896936,0.04925685,137.31,137.29,0.0464568]
[1764092897243,2.82925685,137.31,137.29,0.0464568]
[1764092898040,0.04925685,137.31,137.29,0.0464568]
[1764092898243,2.82925685,137.31,137.29,0.0464568]
[1764092899640,9.38765685,137.31,137.29,0.0464568]
[1764092900138,2.78,137.3,137.29,0.0464568]
[1764092905448,101.9582,137.39,137.3,3.04]
[1764092905645,2.78,137.38,137.36,1.76787853]
[1764092905954,2.78,137.37,137.36,1.76787853]
[1764092906151,2.78,137.37,137.32,3.04]
[1764092906554,0.05256239,137.36,137.33,3.08889946]
[1764092906861,2.83256239,137.36,137.33,0.04889946]
[1764092907558,0.05256239,137.36,137.33,3.08889946]
[1764092912048,0.00256239,137.36,137.35,3.04]
[1764092912247,30.6326,137.43,137.35,3.04]
[1764092912248,2.83,137.42,137.35,3.04]
[1764092912553,2.83,137.41,137.35,3.04]
[1764092913256,2.83,137.41,137.37,0.04990364]
[1764092913257,0.05163226,137.39,137.37,0.04990364]
[1764092915453,0.05163226,137.39,137.37,3.08990364]
[1764092917858,5.25472638,137.44,137.37,3.08990364]
[1764092918058,2.83,137.45,137.43,1.76609737]
[1764092918262,2.83,137.45,137.37,3.04]
[1764092918466,1.12,137.43,137.37,3.04]
[1764092918758,1.12,137.43,137.34,3.04]
[1764092918960,1.12,137.39,137.37,0.04753606]
[1764092923975,1.16897941,137.4,137.37,3.08753606]
[1764092924461,1.16897941,137.4,137.37,0.04753606]
[1764092925074,5.34097716,137.4,137.37,0.04753606]
[1764092925371,1.12,137.39,137.37,0.04753606]
[1764092928762,1.12,137.38,137.37,0.04753606]
[1764092928969,1.07,137.37,137.3,2.95]
[1764092929472,1.07,137.4,137.32,2.95]
[1764092929778,1.07,137.4,137.33,2.95]
[1764092929976,1.07,137.4,137.32,6.5577]
[1764092929977,0.05520207,137.38,137.36,2.95]
[1764092935880,5.30199775,137.45,137.36,2.95]
[1764092936072,5.30199775,137.45,137.33,4.17199775]
[1764092936073,11.91200707,137.44,137.43,1.77036581]
[1764092936277,6.40328229,137.44,137.43,1.77036581]
[1764092936675,1.13,137.43,137.39,2.95]
[1764092936880,0.04781892,137.42,137.4,0.05517284]
[1764092937374,1.17781892,137.42,137.4,0.05517284]
[1764092938781,0.04781892,137.42,137.4,3.00517284]
[1764092939480,1.17781892,137.42,137.4,0.05517284]
[1764092940081,0.04781892,137.42,137.4,3.13517284]
[1764092941586,0.04781892,137.42,137.4,0.05517284]
[1764092941587,1.17781892,137.42,137.4,0.05517284]
[1764092941789,0.04781892,137.42,137.4,3.13517284]